[Event "*** Titled Tuesday Blitz"]
[Site "Chess.com"]
[Date "2019.04.02"]
[Round "5"]
[White "Paralinch"]
[Black "Gordima"]
[Result "1/2-1/2"]
[WhiteElo "2809"]
[BlackElo "2722"]
[TimeControl "180+2"]
[EndTime "15:09:16 PDT"]
[Termination "Game drawn by repetition"]

1. e4 {[%clk 0:03:01.9]} 1... c5 {[%clk 0:02:39.9]} 2. Nf3 {[%clk 0:03:02.7]}
2... Nc6 {[%clk 0:02:37.8]} 3. d4 {[%clk 0:03:03.9]} 3... cxd4 {[%clk
0:02:39.7]} 4. Nxd4 {[%clk 0:03:05.5]} 4... Nf6 {[%clk 0:02:40.6]} 5. Nc3 {[%clk
0:03:06.6]} 5... e5 {[%clk 0:02:42.2]} 6. Ndb5 {[%clk 0:03:07.8]} 6... d6 {[%clk
0:02:43.7]} 7. Bg5 {[%clk 0:03:09.5]} 7... a6 {[%clk 0:02:45.1]} 8. Na3 {[%clk
0:03:11]} 8... b5 {[%clk 0:02:46.6]} 9. Nd5 {[%clk 0:03:12.5]} 9... Be7 {[%clk
0:02:48.2]} 10. Bxf6 {[%clk 0:03:14.1]} 10... Bxf6 {[%clk 0:02:49.6]} 11. c4
{[%clk 0:03:15.8]} 11... b4 {[%clk 0:02:50.3]} 12. Nc2 {[%clk 0:03:17.3]} 12...
O-O {[%clk 0:02:51.9]} 13. h4 {[%clk 0:03:18.7]} 13... a5 {[%clk 0:02:51.2]} 14.
g3 {[%clk 0:03:19.4]} 14... a4 {[%clk 0:02:52.4]} 15. b3 {[%clk 0:03:07.7]}
15... Be6 {[%clk 0:02:49.6]} 16. Be2 {[%clk 0:03:05.8]} 16... Nd4 {[%clk
0:02:36.4]} 17. Nxd4 {[%clk 0:03:03.3]} 17... exd4 {[%clk 0:02:37.3]} 18. Bd3
{[%clk 0:02:41.9]} 18... Bxd5 {[%clk 0:02:20.9]} 19. cxd5 {[%clk 0:02:42.3]}
19... axb3 {[%clk 0:02:01.4]} 20. axb3 {[%clk 0:02:44.2]} 20... Rxa1 {[%clk
0:01:52.6]} 21. Qxa1 {[%clk 0:02:46.1]} 21... Qc7 {[%clk 0:01:50.1]} 22. O-O
{[%clk 0:02:46]} 22... Qc3 {[%clk 0:01:45.9]} 23. Qb1 {[%clk 0:02:46.9]} 23...
Rc8 {[%clk 0:01:44.7]} 24. Bc4 {[%clk 0:02:41.7]} 24... d3 {[%clk 0:01:09]} 25.
Qxd3 {[%clk 0:02:34.2]} 25... Qxd3 {[%clk 0:01:08.4]} 26. Bxd3 {[%clk
0:02:36.1]} 26... Rc3 {[%clk 0:01:09.7]} 27. Bc4 {[%clk 0:02:35.9]} 27... Bd4
{[%clk 0:01:09.4]} 28. Rd1 {[%clk 0:02:34.9]} 28... Bc5 {[%clk 0:01:03]} 29. e5
{[%clk 0:02:36]} 29... Rxg3+ {[%clk 0:01:01.4]} 30. Kf1 {[%clk 0:02:33.3]} 30...
Rh3 {[%clk 0:00:59.6]} 31. Kg2 {[%clk 0:02:28.5]} 31... Rxh4 {[%clk 0:00:58.8]}
32. Ra1 {[%clk 0:02:23.7]} 32... g6 {[%clk 0:00:50.4]} 33. exd6 {[%clk
0:02:18.6]} 33... Bxd6 {[%clk 0:00:46]} 34. Ra6 {[%clk 0:02:19.1]} 34... Bf8
{[%clk 0:00:20.3]} 35. Kf3 {[%clk 0:02:17.8]} 35... Rd4 {[%clk 0:00:16.4]} 36.
Rc6 {[%clk 0:02:18.5]} 36... h5 {[%clk 0:00:12.5]} 37. Ke3 {[%clk 0:02:19.6]}
37... Rd1 {[%clk 0:00:13.2]} 38. Ke2 {[%clk 0:02:20.9]} 38... Rd4 {[%clk
0:00:14.2]} 39. Ke3 {[%clk 0:02:22]} 39... Rd1 {[%clk 0:00:15.3]} 40. Ke2 {[%clk
0:02:05.6]} 40... Rd4 {[%clk 0:00:16]} 41. Ke3 {[%clk 0:02:05.8]} 41... Bg7
{[%clk 0:00:10.6]} 42. d6 {[%clk 0:01:57.2]} 42... Rd1 {[%clk 0:00:04.6]} 43.
Rc8+ {[%clk 0:01:39.6]} 43... Kh7 {[%clk 0:00:05.5]} 44. Rc7 {[%clk 0:01:41.5]}
44... Rxd6 {[%clk 0:00:05.9]} 45. Rxf7 {[%clk 0:01:42.5]} 45... Kh6 {[%clk
0:00:07.2]} 46. Rb7 {[%clk 0:01:42.3]} 46... Bd4+ {[%clk 0:00:07.9]} 47. Ke2
{[%clk 0:01:41.3]} 47... Rf6 {[%clk 0:00:08.5]} 48. f3 {[%clk 0:01:41.9]} 48...
Bc3 {[%clk 0:00:09.8]} 49. Kf2 {[%clk 0:01:42.6]} 49... Kg5 {[%clk 0:00:08]} 50.
Kg3 {[%clk 0:01:42.1]} 50... Be5+ {[%clk 0:00:08.2]} 51. Kg2 {[%clk 0:01:43.5]}
51... Rd6 {[%clk 0:00:06.9]} 52. Rxb4 {[%clk 0:01:39.6]} 52... Rd2+ {[%clk
0:00:07.8]} 53. Kf1 {[%clk 0:01:41.1]} 53... h4 {[%clk 0:00:09.3]} 54. Be6
{[%clk 0:01:42.1]} 54... Bf4 {[%clk 0:00:06.3]} 55. Rb5+ {[%clk 0:01:33.9]}
55... Kf6 {[%clk 0:00:07.4]} 56. Bg4 {[%clk 0:01:34.9]} 56... g5 {[%clk
0:00:07.7]} 57. b4 {[%clk 0:01:33.9]} 57... Rb2 {[%clk 0:00:08.3]} 58. Rf5+
{[%clk 0:01:33.7]} 58... Kg6 {[%clk 0:00:09]} 59. b5 {[%clk 0:01:35.1]} 59...
Be3 {[%clk 0:00:09.6]} 60. Re5 {[%clk 0:01:32.9]} 60... Bd4 {[%clk 0:00:09.2]}
61. Rd5 {[%clk 0:01:33.5]} 61... Be3 {[%clk 0:00:09.4]} 62. Ke1 {[%clk
0:01:27.8]} 62... Rg2 {[%clk 0:00:06.1]} 63. b6 {[%clk 0:01:17.1]} 63... Rb2
{[%clk 0:00:06.8]} 64. Rd6+ {[%clk 0:01:18.3]} 64... Kg7 {[%clk 0:00:04.2]} 65.
Rd7+ {[%clk 0:01:19.7]} 65... Kf6 {[%clk 0:00:05.6]} 66. b7 {[%clk 0:01:21.6]}
66... Bf4 {[%clk 0:00:07]} 67. Kd1 {[%clk 0:01:15.6]} 67... Ke5 {[%clk
0:00:07.7]} 68. Ke1 {[%clk 0:01:10.4]} 68... Kf6 {[%clk 0:00:08.9]} 69. Rh7
{[%clk 0:01:06.1]} 69... Bb8 {[%clk 0:00:06.9]} 70. Kd1 {[%clk 0:01:04.7]} 70...
Ke5 {[%clk 0:00:04.2]} 71. Kc1 {[%clk 0:01:03.3]} 71... Rb6 {[%clk 0:00:05.5]}
72. Kc2 {[%clk 0:01:03.8]} 72... Kf4 {[%clk 0:00:06.5]} 73. Kc3 {[%clk
0:01:02.1]} 73... Kg3 {[%clk 0:00:07.7]} 74. Kc4 {[%clk 0:01:02.6]} 74... Bf4
{[%clk 0:00:09.2]} 75. Kc5 {[%clk 0:01:02.9]} 75... Be3+ {[%clk 0:00:10.6]} 76.
Kd5 {[%clk 0:01:02.5]} 76... Bf4 {[%clk 0:00:11.8]} 77. Kd4 {[%clk 0:00:59.4]}
77... Rb4+ {[%clk 0:00:12.6]} 78. Kc5 {[%clk 0:01:00.2]} 78... Rb1 {[%clk
0:00:12.9]} 79. Kc6 {[%clk 0:01:01.4]} 79... Rc1+ {[%clk 0:00:13.7]} 80. Kd5
{[%clk 0:01:00.8]} 80... Rd1+ {[%clk 0:00:14.2]} 81. Ke6 {[%clk 0:00:58.4]}
81... Rb1 {[%clk 0:00:15.6]} 82. Kd5 {[%clk 0:00:52.8]} 82... Rb5+ {[%clk
0:00:15.1]} 83. Kc4 {[%clk 0:00:53.7]} 83... Rb6 {[%clk 0:00:15.6]} 84. Kc3
{[%clk 0:00:50.9]} 84... Rb1 {[%clk 0:00:16.3]} 85. Kc2 {[%clk 0:00:51.8]} 85...
Rb6 {[%clk 0:00:17.3]} 86. Kd3 {[%clk 0:00:52.1]} 86... Rb4 {[%clk 0:00:17.8]}
87. Kc3 {[%clk 0:00:52.9]} 87... Rb6 {[%clk 0:00:18.8]} 88. Kc4 {[%clk
0:00:47.3]} 88... Bb8 {[%clk 0:00:18.5]} 89. Kc5 {[%clk 0:00:45.4]} 89... Rb2
{[%clk 0:00:18]} 90. Kc6 {[%clk 0:00:44.2]} 90... Rb4 {[%clk 0:00:18.3]} 91. Rh8
{[%clk 0:00:41.4]} 91... Be5 {[%clk 0:00:17.5]} 92. Re8 {[%clk 0:00:40.4]} 92...
Bf4 {[%clk 0:00:18.7]} 93. Rh8 {[%clk 0:00:40.1]} 93... Rb1 {[%clk 0:00:18.8]}
94. Rh7 {[%clk 0:00:35.5]} 94... Be3 {[%clk 0:00:16.7]} 95. Bf5 {[%clk 0:00:30]}
95... Rb2 {[%clk 0:00:11.9]} 96. Bg4 {[%clk 0:00:20.5]} 96... Rc2+ {[%clk
0:00:11.9]} 97. Kd7 {[%clk 0:00:19]} 97... Bf4 {[%clk 0:00:12.6]} 98. Ke6 {[%clk
0:00:19.1]} 98... Rc5 {[%clk 0:00:09.6]} 99. Rh8 {[%clk 0:00:16.1]} 99... Re5+
{[%clk 0:00:07]} 100. Kd7 {[%clk 0:00:13.7]} 100... Rb5 {[%clk 0:00:08.1]} 101.
Kc6 {[%clk 0:00:14.6]} 101... Rb2 {[%clk 0:00:09.2]} 102. Rh7 {[%clk 0:00:15.8]}
102... Be3 {[%clk 0:00:09.8]} 103. Rh8 {[%clk 0:00:15.6]} 103... Rb6+ {[%clk
0:00:10.8]} 104. Kc7 {[%clk 0:00:16.3]} 104... Rb2 {[%clk 0:00:12]} 105. Kc6
{[%clk 0:00:17.5]} 105... Bf4 {[%clk 0:00:12.7]} 106. Rh7 {[%clk 0:00:18.4]}
106... Be5 {[%clk 0:00:13.1]} 107. Kd5 {[%clk 0:00:19.1]} 107... Bf4 {[%clk
0:00:14]} 108. Kc6 {[%clk 0:00:20.5]} 108... Rc2+ {[%clk 0:00:15.1]} 109. Kb5
{[%clk 0:00:21.4]} 109... Rb2+ {[%clk 0:00:15.8]} 110. Kc6 {[%clk 0:00:22.9]}
110... Be3 {[%clk 0:00:16.5]} 111. Kd5 {[%clk 0:00:23.7]} 111... Bf2 {[%clk
0:00:16.4]} 112. Kc6 {[%clk 0:00:24.6]} 112... Be3 {[%clk 0:00:13]} 1/2-1/2

[Event "*** Titled Tuesday Blitz"]
[Site "Chess.com"]
[Date "2019.04.02"]
[Round "5"]
[White "GMJimKnopf"]
[Black "sofaceindisguise"]
[Result "1-0"]
[WhiteElo "2663"]
[BlackElo "2546"]
[TimeControl "180+2"]
[EndTime "15:09:29 PDT"]
[Termination "GMJimKnopf won by resignation"]

1. e4 {[%clk 0:03:01.9]} 1... c5 {[%clk 0:02:58]} 2. Nf3 {[%clk 0:03:03.1]} 2...
d6 {[%clk 0:02:59]} 3. d4 {[%clk 0:03:04.4]} 3... cxd4 {[%clk 0:03:00.9]} 4.
Nxd4 {[%clk 0:03:06.2]} 4... Nf6 {[%clk 0:03:02.3]} 5. Nc3 {[%clk 0:03:07.8]}
5... a6 {[%clk 0:03:03.2]} 6. Bg5 {[%clk 0:03:09.3]} 6... e6 {[%clk 0:03:03.3]}
7. Qe2 {[%clk 0:03:10.6]} 7... Be7 {[%clk 0:03:04.1]} 8. f4 {[%clk 0:03:11.8]}
8... h6 {[%clk 0:03:04.6]} 9. Bxf6 {[%clk 0:03:10.2]} 9... Bxf6 {[%clk
0:03:03.2]} 10. O-O-O {[%clk 0:03:11.2]} 10... Nd7 {[%clk 0:03:03.6]} 11. g4
{[%clk 0:03:03.7]} 11... Qb6 {[%clk 0:03:01.5]} 12. Qd2 {[%clk 0:02:56.8]} 12...
Nc5 {[%clk 0:02:53.5]} 13. h4 {[%clk 0:02:53.2]} 13... g6 {[%clk 0:02:42.6]} 14.
Bg2 {[%clk 0:02:52.9]} 14... Bd7 {[%clk 0:02:40.2]} 15. g5 {[%clk 0:02:45.7]}
15... hxg5 {[%clk 0:02:40.7]} 16. hxg5 {[%clk 0:02:47.6]} 16... Rxh1 {[%clk
0:02:41.2]} 17. Bxh1 {[%clk 0:02:26.8]} 17... Bg7 {[%clk 0:02:41]} 18. f5 {[%clk
0:02:08.7]} 18... Be5 {[%clk 0:02:34.4]} 19. Nf3 {[%clk 0:02:01.1]} 19... O-O-O
{[%clk 0:02:24.8]} 20. Nxe5 {[%clk 0:01:54.9]} 20... dxe5 {[%clk 0:02:26.5]} 21.
fxg6 {[%clk 0:01:27.3]} 21... fxg6 {[%clk 0:02:27.5]} 22. Qh2 {[%clk 0:01:25.4]}
22... Na4 {[%clk 0:01:48.1]} 23. Nxa4 {[%clk 0:01:11.8]} 23... Bxa4 {[%clk
0:01:48.4]} 24. Rxd8+ {[%clk 0:01:11.2]} 24... Kxd8 {[%clk 0:01:49.3]} 25. Qh8+
{[%clk 0:00:35.3]} 25... Be8 {[%clk 0:01:47.3]} 26. Qf6+ {[%clk 0:00:35.5]}
26... Kd7 {[%clk 0:01:48.3]} 27. Bf3 {[%clk 0:00:24.4]} 27... Qe3+ {[%clk
0:01:46.1]} 28. Kd1 {[%clk 0:00:26]} 28... Qg1+ {[%clk 0:01:32.9]} 29. Ke2
{[%clk 0:00:26.9]} 29... Qd4 {[%clk 0:01:29.8]} 30. c3 {[%clk 0:00:24.2]} 30...
Qc4+ {[%clk 0:01:29.7]} 31. Kf2 {[%clk 0:00:23.2]} 31... Qc5+ {[%clk 0:01:30.1]}
32. Kg2 {[%clk 0:00:23.6]} 32... Qb5 {[%clk 0:01:23.4]} 33. b4 {[%clk
0:00:18.2]} 33... Qc4 {[%clk 0:01:07.4]} 34. Qxe5 {[%clk 0:00:18]} 34... Qxa2+
{[%clk 0:01:08.4]} 35. Kg3 {[%clk 0:00:19.5]} 35... Qa1 {[%clk 0:01:06.1]} 36.
Bg4 {[%clk 0:00:18.7]} 36... Qg1+ {[%clk 0:01:04.6]} 37. Kh3 {[%clk 0:00:19.5]}
37... Qf1+ {[%clk 0:01:00.2]} 38. Kh2 {[%clk 0:00:20.1]} 38... Bf7 {[%clk
0:00:59]} 39. Qd4+ {[%clk 0:00:20.5]} 39... Ke7 {[%clk 0:01:00.1]} 40. e5 {[%clk
0:00:20.4]} 40... Kf8 {[%clk 0:00:57.3]} 41. Bh3 {[%clk 0:00:21.5]} 41... Qc1
{[%clk 0:00:56.3]} 42. Qd8+ {[%clk 0:00:21.3]} 42... Kg7 {[%clk 0:00:57.5]} 43.
Qf6+ {[%clk 0:00:22.8]} 43... Kg8 {[%clk 0:00:58.8]} 44. Bxe6 {[%clk 0:00:24]}
44... Qd2+ {[%clk 0:00:59.6]} 45. Kg1 {[%clk 0:00:25.5]} 45... Qe3+ {[%clk
0:00:58.1]} 46. Kf1 {[%clk 0:00:26.2]} 46... Qc1+ {[%clk 0:00:55.2]} 47. Ke2
{[%clk 0:00:26.2]} 47... Qc2+ {[%clk 0:00:56.1]} 48. Kf1 {[%clk 0:00:27.7]}
48... Qd3+ {[%clk 0:00:54.9]} 49. Kg2 {[%clk 0:00:28.6]} 49... Qe2+ {[%clk
0:00:53.8]} 50. Kh3 {[%clk 0:00:28.7]} 50... Qd3+ {[%clk 0:00:51.9]} 51. Kh4
{[%clk 0:00:26.7]} 51... Qe4+ {[%clk 0:00:44]} 52. Bg4 {[%clk 0:00:27.7]} 52...
Qh1+ {[%clk 0:00:41.6]} 53. Kg3 {[%clk 0:00:28.9]} 53... Qe1+ {[%clk 0:00:42]}
54. Kf4 {[%clk 0:00:29.6]} 54... Qd2+ {[%clk 0:00:41.1]} 55. Kg3 {[%clk
0:00:28.6]} 55... Qxc3+ {[%clk 0:00:41.8]} 56. Bf3 {[%clk 0:00:27]} 56... Qxb4
{[%clk 0:00:36.5]} 57. Qd8+ {[%clk 0:00:27.9]} 57... Kh7 {[%clk 0:00:34.1]} 58.
Qd7 {[%clk 0:00:25.5]} 58... Qe1+ {[%clk 0:00:32.2]} 59. Kg2 {[%clk 0:00:26.8]}
59... Kg8 {[%clk 0:00:30.3]} 60. Qd8+ {[%clk 0:00:26.7]} 60... Kg7 {[%clk
0:00:29.4]} 61. Qf6+ {[%clk 0:00:27.7]} 61... Kg8 {[%clk 0:00:29.9]} 62. Qd8+
{[%clk 0:00:27.9]} 62... Kh7 {[%clk 0:00:29.3]} 63. Qd7 {[%clk 0:00:26.4]} 63...
Kg8 {[%clk 0:00:21.3]} 64. Qd6 {[%clk 0:00:18.3]} 64... Qe3 {[%clk 0:00:17.8]}
65. Qd8+ {[%clk 0:00:18]} 65... Kg7 {[%clk 0:00:18.9]} 66. Qf6+ {[%clk
0:00:19.3]} 66... Kf8 {[%clk 0:00:20.3]} 67. Qd6+ {[%clk 0:00:18.1]} 67... Ke8
{[%clk 0:00:21.2]} 68. Qf6 {[%clk 0:00:17.4]} 68... Qd2+ {[%clk 0:00:21.7]} 69.
Kg3 {[%clk 0:00:18.6]} 69... Qd7 {[%clk 0:00:22.9]} 70. Bg4 {[%clk 0:00:18.4]}
70... Qd3+ {[%clk 0:00:23.9]} 71. Kh4 {[%clk 0:00:18.7]} 71... Qe3 {[%clk
0:00:21.7]} 72. Qh8+ {[%clk 0:00:18.9]} 72... Ke7 {[%clk 0:00:21.7]} 73. Qf6+
{[%clk 0:00:20.4]} 73... Ke8 {[%clk 0:00:22.9]} 74. e6 {[%clk 0:00:21.2]} 74...
Qe1+ {[%clk 0:00:22.4]} 75. Kh3 {[%clk 0:00:22.6]} 75... Qe3+ {[%clk 0:00:23.7]}
76. Kg2 {[%clk 0:00:23.4]} 76... Qd2+ {[%clk 0:00:24.8]} 77. Kg3 {[%clk
0:00:24.2]} 77... Qe3+ {[%clk 0:00:25.5]} 78. Kh2 {[%clk 0:00:21.6]} 78... Qd2+
{[%clk 0:00:25]} 79. Kh3 {[%clk 0:00:22.7]} 79... Qd3+ {[%clk 0:00:24.4]} 80.
Kh4 {[%clk 0:00:22.9]} 80... Bxe6 {[%clk 0:00:20]} 81. Qxe6+ {[%clk 0:00:22.5]}
81... Kd8 {[%clk 0:00:21.2]} 82. Qc8+ {[%clk 0:00:20.4]} 82... Ke7 {[%clk
0:00:22.3]} 83. Qxb7+ {[%clk 0:00:21.6]} 83... Kf8 {[%clk 0:00:24.2]} 84. Qb8+
{[%clk 0:00:21.8]} 84... Ke7 {[%clk 0:00:25.4]} 85. Qe5+ {[%clk 0:00:23]} 85...
Kf7 {[%clk 0:00:26.3]} 86. Be6+ {[%clk 0:00:23.1]} 86... Kf8 {[%clk 0:00:27.5]}
87. Qf6+ {[%clk 0:00:22.3]} 87... Ke8 {[%clk 0:00:28.8]} 88. Bf7+ {[%clk
0:00:23.5]} 88... Kd7 {[%clk 0:00:29.6]} 89. Bxg6 {[%clk 0:00:24.2]} 89... Qc4+
{[%clk 0:00:28.7]} 90. Kh5 {[%clk 0:00:25.2]} 90... Qe2+ {[%clk 0:00:29.3]} 91.
Kh6 {[%clk 0:00:26.6]} 91... Qh2+ {[%clk 0:00:29.7]} 92. Kg7 {[%clk 0:00:27.5]}
92... a5 {[%clk 0:00:30.5]} 93. Bf5+ {[%clk 0:00:29.4]} 93... Kc7 {[%clk
0:00:29.8]} 94. Qc3+ {[%clk 0:00:29.4]} 94... Kb6 {[%clk 0:00:30.8]} 95. Qb3+
{[%clk 0:00:30.5]} 95... Ka7 {[%clk 0:00:31.5]} 96. Qf7+ {[%clk 0:00:28.6]}
96... Kb6 {[%clk 0:00:32.7]} 97. Qf6+ {[%clk 0:00:29.4]} 97... Ka7 {[%clk
0:00:33.8]} 98. g6 {[%clk 0:00:30.1]} 98... a4 {[%clk 0:00:35]} 99. Kg8 {[%clk
0:00:27.9]} 99... Qb8+ {[%clk 0:00:32.8]} 100. Qf8 {[%clk 0:00:27.9]} 100... Qe5
{[%clk 0:00:29.5]} 101. g7 {[%clk 0:00:24.1]} 101... a3 {[%clk 0:00:30.7]} 102.
Qxa3+ {[%clk 0:00:24.8]} 102... Kb6 {[%clk 0:00:31.6]} 103. Qf8 {[%clk
0:00:24.7]} 103... Qd5+ {[%clk 0:00:31.6]} 104. Qf7 {[%clk 0:00:25.8]} 104...
Qd8+ {[%clk 0:00:32.5]} 105. Kh7 {[%clk 0:00:26.7]} 105... Qh4+ {[%clk
0:00:33.6]} 106. Kg6 {[%clk 0:00:28]} 106... Qg3+ {[%clk 0:00:34.7]} 107. Kf6
{[%clk 0:00:29.4]} 107... Qd6+ {[%clk 0:00:35.3]} 108. Qe6 {[%clk 0:00:30.4]}
1-0

[Event "*** Titled Tuesday Blitz"]
[Site "Chess.com"]
[Date "2019.04.02"]
[Round "6"]
[White "kikoveiga"]
[Black "cyber-alekhine2"]
[Result "1-0"]
[WhiteElo "2188"]
[BlackElo "2150"]
[TimeControl "180+2"]
[EndTime "15:14:13 PDT"]
[Termination "kikoveiga won by resignation"]

1. Nf3 {[%clk 0:03:01.9]} 1... f5 {[%clk 0:02:59.8]} 2. g3 {[%clk 0:02:58.9]}
2... Nf6 {[%clk 0:02:59.8]} 3. Bg2 {[%clk 0:03:00.8]} 3... d6 {[%clk 0:03:00.1]}
4. O-O {[%clk 0:03:00.2]} 4... e5 {[%clk 0:03:00.4]} 5. d3 {[%clk 0:02:59.7]}
5... Be7 {[%clk 0:03:01.2]} 6. Nbd2 {[%clk 0:03:01.6]} 6... O-O {[%clk
0:03:02.1]} 7. e4 {[%clk 0:02:56.7]} 7... f4 {[%clk 0:02:59.3]} 8. d4 {[%clk
0:02:57.5]} 8... Nc6 {[%clk 0:02:57.6]} 9. Nc4 {[%clk 0:02:58.3]} 9... b5 {[%clk
0:02:22.7]} 10. dxe5 {[%clk 0:02:37.3]} 10... bxc4 {[%clk 0:01:51.5]} 11. exf6
{[%clk 0:02:36.8]} 11... Bxf6 {[%clk 0:01:52.9]} 12. Bxf4 {[%clk 0:02:38.5]}
12... Bxb2 {[%clk 0:01:48.7]} 13. Qd5+ {[%clk 0:02:37.7]} 13... Kh8 {[%clk
0:01:45.3]} 14. Qxc6 {[%clk 0:02:36.2]} 1-0

[Event "*** Titled Tuesday Blitz"]
[Site "Chess.com"]
[Date "2019.04.02"]
[Round "6"]
[White "melicg25"]
[Black "Vamostodorecto"]
[Result "0-1"]
[WhiteElo "2301"]
[BlackElo "2500"]
[TimeControl "180+2"]
[EndTime "15:15:01 PDT"]
[Termination "Vamostodorecto won by resignation"]

1. d4 {[%clk 0:02:58.4]} 1... Nf6 {[%clk 0:02:58.3]} 2. Nf3 {[%clk 0:02:59.5]}
2... g6 {[%clk 0:02:59.1]} 3. g3 {[%clk 0:03:00.8]} 3... Bg7 {[%clk 0:03:00.5]}
4. Bg2 {[%clk 0:03:02.4]} 4... O-O {[%clk 0:03:02.2]} 5. O-O {[%clk 0:03:03.9]}
5... d5 {[%clk 0:03:04.1]} 6. c4 {[%clk 0:03:02.6]} 6... Nc6 {[%clk 0:02:58.9]}
7. cxd5 {[%clk 0:03:02]} 7... Nxd5 {[%clk 0:03:00.8]} 8. Nc3 {[%clk 0:02:59.6]}
8... Bf5 {[%clk 0:03:02]} 9. e3 {[%clk 0:02:55.3]} 9... Nxc3 {[%clk 0:02:59.9]}
10. bxc3 {[%clk 0:02:56]} 10... Qd7 {[%clk 0:03:00.7]} 11. Re1 {[%clk
0:02:56.3]} 11... Be4 {[%clk 0:02:58.8]} 12. Ne5 {[%clk 0:02:52.8]} 12... Nxe5
{[%clk 0:02:35]} 13. Bxe4 {[%clk 0:02:53.1]} 13... Nc6 {[%clk 0:02:29.7]} 14.
Bg2 {[%clk 0:02:52.4]} 14... Rad8 {[%clk 0:02:27]} 15. Qb3 {[%clk 0:02:51.1]}
15... Na5 {[%clk 0:02:26.5]} 16. Qb4 {[%clk 0:02:49.6]} 16... b6 {[%clk
0:02:27.6]} 17. Ba3 {[%clk 0:02:48.7]} 17... Rfe8 {[%clk 0:02:27.5]} 18. Rab1
{[%clk 0:02:47.3]} 18... e5 {[%clk 0:02:26.6]} 19. Red1 {[%clk 0:02:35.7]} 19...
Bf8 {[%clk 0:02:27.5]} 20. dxe5 {[%clk 0:02:14.9]} 20... Qxd1+ {[%clk
0:02:24.8]} 21. Rxd1 {[%clk 0:02:15.7]} 21... Rxd1+ {[%clk 0:02:26.7]} 22. Bf1
{[%clk 0:02:17]} 22... Bxb4 {[%clk 0:02:26.4]} 23. Bxb4 {[%clk 0:02:18.2]} 23...
Nc4 {[%clk 0:02:19.5]} 24. Kg2 {[%clk 0:02:17]} 24... Rxf1 {[%clk 0:02:15.7]}
25. Kxf1 {[%clk 0:02:17.3]} 25... c5 {[%clk 0:02:17.3]} 0-1

[Event "*** Titled Tuesday Blitz"]
[Site "Chess.com"]
[Date "2019.04.02"]
[Round "6"]
[White "rst2003"]
[Black "ace_mar"]
[Result "0-1"]
[WhiteElo "2280"]
[BlackElo "2274"]
[TimeControl "180+2"]
[EndTime "15:15:32 PDT"]
[Termination "ace_mar won by resignation"]

1. e4 {[%clk 0:03:01.9]} 1... e5 {[%clk 0:03:00.6]} 2. Nf3 {[%clk 0:03:02]} 2...
Nc6 {[%clk 0:03:02]} 3. Bc4 {[%clk 0:03:02.9]} 3... Bc5 {[%clk 0:03:03]} 4. O-O
{[%clk 0:03:04]} 4... Nf6 {[%clk 0:03:03.9]} 5. d3 {[%clk 0:03:04.8]} 5... O-O
{[%clk 0:03:04.4]} 6. Nbd2 {[%clk 0:03:05.9]} 6... d6 {[%clk 0:03:04.6]} 7. h3
{[%clk 0:03:07.3]} 7... a6 {[%clk 0:03:05.6]} 8. Re1 {[%clk 0:03:08.5]} 8... Ba7
{[%clk 0:03:00.6]} 9. c3 {[%clk 0:03:09.5]} 9... Ne7 {[%clk 0:02:56.6]} 10. Bb3
{[%clk 0:03:10.1]} 10... Ng6 {[%clk 0:02:57.3]} 11. Nf1 {[%clk 0:03:11.1]} 11...
Nh5 {[%clk 0:02:58.2]} 12. d4 {[%clk 0:03:10]} 12... Nhf4 {[%clk 0:02:58.4]} 13.
Ng3 {[%clk 0:03:03.4]} 13... h6 {[%clk 0:02:40.5]} 14. Be3 {[%clk 0:02:57.3]}
14... Qf6 {[%clk 0:02:31.5]} 15. Nh2 {[%clk 0:02:53.4]} 15... Re8 {[%clk
0:02:25.7]} 16. Qf3 {[%clk 0:02:51.1]} 16... exd4 {[%clk 0:02:07.1]} 17. cxd4
{[%clk 0:02:51.2]} 17... Bxd4 {[%clk 0:02:07.8]} 18. Bxd4 {[%clk 0:02:51.4]}
18... Qxd4 {[%clk 0:02:09.7]} 19. Rac1 {[%clk 0:02:32.4]} 19... c6 {[%clk
0:02:02.6]} 20. Ng4 {[%clk 0:02:27.1]} 20... Be6 {[%clk 0:01:52.9]} 21. Red1
{[%clk 0:02:23.7]} 21... Qb4 {[%clk 0:01:42.4]} 22. Nf5 {[%clk 0:02:16.1]} 22...
Bxb3 {[%clk 0:01:38.8]} 23. axb3 {[%clk 0:02:16]} 23... Qxe4 {[%clk 0:01:32.3]}
24. Qg3 {[%clk 0:02:13.3]} 0-1

[Event "*** Titled Tuesday Blitz"]
[Site "Chess.com"]
[Date "2019.04.02"]
[Round "6"]
[White "sergeikim"]
[Black "IMDT02"]
[Result "1-0"]
[WhiteElo "2574"]
[BlackElo "2428"]
[TimeControl "180+2"]
[EndTime "15:15:42 PDT"]
[Termination "sergeikim won by resignation"]

1. d4 {[%clk 0:03:01.9]} 1... f5 {[%clk 0:02:59.8]} 2. c4 {[%clk 0:03:02]} 2...
e6 {[%clk 0:03:01.4]} 3. g3 {[%clk 0:03:02.5]} 3... Nf6 {[%clk 0:03:02.9]} 4.
Bg2 {[%clk 0:03:03.6]} 4... c6 {[%clk 0:03:04.6]} 5. Nh3 {[%clk 0:03:04]} 5...
d5 {[%clk 0:03:06.2]} 6. Qc2 {[%clk 0:03:02.6]} 6... Bd6 {[%clk 0:03:07.3]} 7.
O-O {[%clk 0:03:02.7]} 7... O-O {[%clk 0:03:08.9]} 8. Nd2 {[%clk 0:03:01.9]}
8... Nbd7 {[%clk 0:03:09.5]} 9. Nf3 {[%clk 0:03:02.1]} 9... Ne4 {[%clk
0:03:10.9]} 10. Nf4 {[%clk 0:03:01.6]} 10... Qe7 {[%clk 0:03:11]} 11. Nd3 {[%clk
0:03:01.2]} 11... b6 {[%clk 0:03:02.7]} 12. Bf4 {[%clk 0:03:00.5]} 12... Bb7
{[%clk 0:03:00.1]} 13. Bxd6 {[%clk 0:02:58]} 13... Qxd6 {[%clk 0:03:01.4]} 14.
b4 {[%clk 0:02:58.9]} 14... Ba6 {[%clk 0:02:43.4]} 15. c5 {[%clk 0:02:56.5]}
15... Qe7 {[%clk 0:02:37]} 16. Nde5 {[%clk 0:02:53.7]} 16... Nxe5 {[%clk
0:02:27.2]} 17. Nxe5 {[%clk 0:02:53.9]} 17... Rfc8 {[%clk 0:02:27.2]} 18. a4
{[%clk 0:02:48.2]} 18... b5 {[%clk 0:02:22.9]} 19. a5 {[%clk 0:02:42.8]} 19...
Rc7 {[%clk 0:02:21.1]} 20. Bxe4 {[%clk 0:02:31.9]} 20... dxe4 {[%clk 0:02:16.1]}
21. f3 {[%clk 0:02:32.7]} 21... exf3 {[%clk 0:02:12]} 22. Rxf3 {[%clk
0:02:28.6]} 22... Rd8 {[%clk 0:02:12.6]} 23. Rd1 {[%clk 0:02:28.6]} 23... Rd5
{[%clk 0:02:11.5]} 24. e4 {[%clk 0:02:28.5]} 24... fxe4 {[%clk 0:02:06.1]} 25.
Qxe4 {[%clk 0:02:28.9]} 25... Qd8 {[%clk 0:01:57.2]} 26. Rdf1 {[%clk 0:02:25.2]}
26... Rc8 {[%clk 0:01:58]} 27. Qg4 {[%clk 0:02:15.1]} 1-0